bitfinex-derivatives/quotes_BTCF0:USTF0_20251229
["timestamp","ask_amount","ask_price","bid_price","bid_amount"]
[1767038167879,0.0687691,87446.0,87428.0,0.04932]
[1767038169374,0.05732,87446.0,87428.0,0.04932]
[1767038169580,0.05732,87446.0,87429.0,0.0114512]
[1767038170570,0.05732,87446.0,87428.0,0.04932]
[1767038170774,0.05732,87446.0,87434.0,0.0114506]
[1767038170976,0.0687683,87453.0,87428.0,0.04932]
[1767038171176,0.0687683,87453.0,87431.0,0.011451]
[1767038172377,0.0687683,87453.0,87428.0,0.04932]
[1767038172583,0.05732,87453.0,87435.0,0.0114505]
[1767038173179,0.05732,87453.0,87432.0,0.0114508]
[1767038173797,0.05732,87453.0,87428.0,0.04932]
[1767038174080,0.0114484,87452.0,87432.0,0.0114508]
[1767038174486,0.0114484,87452.0,87431.0,0.011451]
[1767038174676,0.05732,87453.0,87428.0,0.04932]
[1767038175285,0.11857778,87453.0,87428.0,0.04932]
[1767038175986,0.13002598,87453.0,87432.0,0.0114508]
[1767038176986,0.13002598,87453.0,87429.0,0.0114512]
[1767038177186,0.0114485,87451.0,87429.0,0.0114512]
[1767038177790,0.0114485,87451.0,87431.0,0.011451]
[1767038177992,0.11857778,87453.0,87431.0,0.011451]
[1767038178290,0.0114483,87452.0,87431.0,0.011451]
[1767038178490,0.11857778,87453.0,87433.0,0.0114508]
[1767038180887,0.11857778,87453.0,87428.0,0.03432]
[1767038181082,0.11857778,87453.0,87432.0,0.0114508]
[1767038181297,0.13002598,87453.0,87432.0,0.0114508]
[1767038181995,0.11857778,87453.0,87428.0,0.03432]
[1767038182592,0.11857778,87453.0,87435.0,0.0114505]
[1767038182792,0.11857778,87453.0,87435.0,0.0687705]
[1767038183497,0.11857778,87453.0,87435.0,0.05732]
[1767038183692,0.11857778,87453.0,87440.0,0.0114498]
[1767038183901,0.11857778,87453.0,87439.0,0.0114499]
[1767038184299,0.05732,87453.0,87439.0,0.0114499]
[1767038184497,0.11857778,87453.0,87439.0,0.0114499]
[1767038184692,0.05732,87453.0,87439.0,0.0114499]
[1767038185601,0.05732,87453.0,87437.0,0.09732]
[1767038185797,0.05732,87453.0,87437.0,0.1087702]
[1767038187899,0.00017156,87454.0,87437.0,0.1087702]
[1767038188199,0.06142934,87454.0,87437.0,0.07332]
[1767038188390,0.09732,87468.0,87440.0,0.17309037]
[1767038188591,0.0114467,87465.0,87442.0,0.0114496]
[1767038188816,0.0114465,87466.0,87444.0,0.0114493]
[1767038189018,0.0114468,87464.0,87443.0,0.05732]
[1767038189328,0.00017156,87462.0,87445.0,0.00017156]
[1767038189524,0.05732,87461.0,87442.0,0.05732]
[1767038189819,0.0687672,87461.0,87442.0,0.05732]
[1767038190523,0.05732,87461.0,87443.0,0.00017156]
[1767038192727,0.17294646,87460.0,87443.0,0.00017156]
[1767038193930,0.17294646,87460.0,87443.0,0.01162096]
[1767038194732,0.17294646,87460.0,87443.0,0.00017156]
[1767038195218,0.17294646,87460.0,87442.0,0.02249155]
[1767038195728,0.05732,87461.0,87442.0,0.03394115]
[1767038195923,0.17294646,87460.0,87442.0,0.03394115]
[1767038196229,0.17294646,87460.0,87442.0,0.03411271]
[1767038196933,0.17294646,87460.0,87442.0,0.02266311]
[1767038198929,0.17294646,87460.0,87444.0,0.0114493]
[1767038199425,0.17294646,87460.0,87442.0,0.02266311]
[1767038200324,0.17294646,87460.0,87443.0,0.0114494]
[1767038202233,0.17294646,87460.0,87442.0,0.00211251]
[1767038204032,0.17294646,87460.0,87442.0,0.01356211]
[1767038204233,0.17294646,87460.0,87442.0,0.00211251]
[1767038207436,0.0114475,87459.0,87442.0,0.00211251]
[1767038209534,0.17294646,87460.0,87439.0,0.16609]
[1767038210621,0.0114474,87459.0,87428.0,0.03321653]
[1767038210829,0.17294646,87450.0,87428.0,0.00228761]
[1767038211029,0.17294646,87450.0,87429.0,0.15464]
[1767038211430,0.17294646,87450.0,87430.0,0.0114511]
[1767038214640,0.17294646,87450.0,87430.0,0.18439756]
[1767038215140,0.17294646,87450.0,87430.0,0.0114511]
[1767038215340,0.17294646,87450.0,87430.0,0.18439756]
[1767038215840,0.17294646,87450.0,87430.0,0.0114511]
[1767038217543,0.0114489,87448.0,87429.0,0.15464]
[1767038217743,0.17294646,87440.0,87428.0,0.00228761]
[1767038217936,0.0114503,87437.0,87420.0,0.15464]
[1767038218136,0.17294646,87431.0,87415.0,0.1087731]
[1767038218341,0.17294646,87431.0,87416.0,0.05732]
[1767038218743,0.17294646,87431.0,87416.0,0.0687729]
[1767038218940,0.17294646,87431.0,87418.0,0.0114527]
[1767038219150,0.00017156,87432.0,87418.0,0.0114527]
[1767038219337,0.17294646,87430.0,87418.0,0.0114527]
[1767038220148,0.00017156,87432.0,87418.0,0.0114527]
[1767038222849,0.00017156,87432.0,87416.0,0.05732]
[1767038223044,0.17294646,87430.0,87416.0,0.05732]
[1767038223255,0.17294646,87430.0,87416.0,0.0687729]
[1767038223450,0.00017156,87432.0,87416.0,0.0687729]
[1767038223744,0.17294646,87430.0,87416.0,0.0687729]
[1767038225851,0.17294646,87430.0,87418.0,0.0114527]
[1767038226041,0.17294646,87430.0,87416.0,0.05732]
[1767038226452,0.17294646,87430.0,87417.0,0.0114528]
[1767038226652,0.00017156,87432.0,87417.0,0.0114528]
[1767038227037,0.00017156,87432.0,87416.0,0.05732]
[1767038227248,0.00017156,87432.0,87416.0,0.068773]
[1767038229751,0.00017156,87432.0,87418.0,0.0114527]
[1767038230141,0.00017156,87432.0,87416.0,0.05732]
[1767038231148,0.00017156,87432.0,87417.0,0.0114529]
[1767038232051,0.00017156,87432.0,87416.0,0.05732]
[1767038232651,0.17294646,87430.0,87416.0,0.05732]
[1767038232849,0.17294646,87426.0,87407.0,0.0114541]
[1767038233055,0.17294646,87420.0,87409.0,0.0114539]
[1767038234357,0.05732,87424.0,87409.0,0.0114539]
[1767038238750,0.05732,87424.0,87406.0,0.0114543]
[1767038241352,0.05732,87424.0,87408.0,0.011454]
[1767038243254,0.05732,87424.0,87410.0,0.17294646]
[1767038243453,0.05732,87424.0,87410.0,0.18440026]
[1767038244154,0.05732,87424.0,87410.0,0.17294646]
[1767038247855,0.17294646,87420.0,87404.0,0.0114545]
[1767038248062,0.17294646,87420.0,87402.0,0.05732]
[1767038248960,0.05732,87424.0,87403.0,0.0114547]
[1767038249263,0.17294646,87420.0,87403.0,0.0114547]
[1767038251968,0.05732,87424.0,87403.0,0.0114547]
[1767038252169,0.17294646,87420.0,87403.0,0.0114547]
[1767038252469,0.05732,87424.0,87403.0,0.0114547]
[1767038256270,0.05732,87424.0,87402.0,0.05732]
[1767038256475,0.05732,87424.0,87405.0,0.0114544]
[1767038256679,0.05732,87424.0,87406.0,0.0114542]
[1767038256981,0.05732,87424.0,87402.0,0.05732]
[1767038257374,0.05732,87424.0,87405.0,0.0114544]
[1767038258570,0.05732,87424.0,87407.0,0.0114542]
[1767038263279,0.05732,87424.0,87410.0,0.0114537]
[1767038266278,0.05732,87423.0,87415.0,0.0114531]
[1767038266485,0.00017156,87432.0,87411.0,0.15468]
[1767038266677,0.00017156,87432.0,87419.0,0.0114525]
[1767038266877,0.00017156,87432.0,87418.0,0.0114527]
[1767038267778,0.00017156,87432.0,87415.0,0.09736]
[1767038267779,0.00017156,87432.0,87420.0,0.0114524]
[1767038271388,0.00017156,87432.0,87415.0,0.0898124]
[1767038271591,0.00017156,87432.0,87418.0,0.0114526]
[1767038273491,0.00017156,87432.0,87415.0,0.0898124]
[1767038274185,0.00017156,87432.0,87415.0,0.1012655]
[1767038275092,0.00017156,87432.0,87417.0,0.0114528]
[1767038276491,0.00017156,87432.0,87415.0,0.0898124]
[1767038277088,0.00017156,87432.0,87416.0,0.011453]
[1767038278593,0.00017156,87432.0,87415.0,0.0812654]
[1767038278791,0.06161089,87432.0,87415.0,0.0812654]
[1767038279289,0.06161089,87432.0,87412.0,0.05732]
[1767038279495,0.06161089,87432.0,87405.0,0.09732]
[1767038279496,0.00017156,87432.0,87405.0,0.09732]
[1767038279697,0.06161089,87432.0,87405.0,0.09732]
[1767038280301,0.0114519,87425.0,87405.0,0.09732]
[1767038281289,0.0114523,87422.0,87405.0,0.09732]
[1767038281685,0.0114529,87417.0,87393.0,0.011456]
[1767038281887,0.0114525,87420.0,87403.0,0.05732]
[1767038293598,0.0114522,87423.0,87403.0,0.05732]
[1767038294006,0.06143933,87425.0,87403.0,0.05732]
[1767038294209,0.0114527,87419.0,87403.0,0.05732]
[1767038296808,0.0114523,87422.0,87403.0,0.05732]
[1767038298305,0.15464,87426.0,87404.0,0.0114545]
[1767038298513,0.1660917,87426.0,87404.0,0.0114545]
[1767038299607,0.22753103,87426.0,87404.0,0.0114545]
[1767038300113,0.1660917,87426.0,87404.0,0.0114545]
[1767038300313,0.22753103,87426.0,87404.0,0.0114545]
[1767038300711,0.22753103,87426.0,87400.0,0.011455]
[1767038301107,0.0114522,87423.0,87400.0,0.011455]
[1767038301310,0.21607933,87426.0,87397.0,0.0114554]
[1767038301517,0.0114527,87419.0,87397.0,0.0114554]
[1767038301713,0.05732,87418.0,87397.0,0.0114554]
[1767038302317,0.05732,87418.0,87395.0,0.05732]
[1767038302515,0.011453,87417.0,87395.0,0.0687757]
[1767038302717,0.011453,87417.0,87397.0,0.0114555]
[1767038305208,0.0114529,87417.0,87399.0,0.0114552]
[1767038305409,0.05732,87418.0,87399.0,0.0114552]
[1767038305618,0.05732,87418.0,87401.0,0.0114549]
[1767038306015,0.0687728,87418.0,87398.0,0.01374369]
[1767038306216,0.011453,87416.0,87398.0,0.00228839]
[1767038306616,0.0114533,87414.0,87398.0,0.00228839]
[1767038307018,0.011453,87417.0,87398.0,0.00228839]
[1767038307321,0.011453,87417.0,87398.0,0.01374369]
[1767038308415,0.0687728,87418.0,87398.0,0.01374369]
[1767038310321,0.0687728,87418.0,87400.0,0.0114551]
[1767038312021,0.0687728,87418.0,87402.0,0.0114548]
[1767038313523,0.0114532,87415.0,87398.0,0.00228839]
[1767038313724,0.0114534,87413.0,87398.0,0.00228839]
[1767038313922,0.0114537,87411.0,87398.0,0.00228839]
[1767038314624,0.0114537,87411.0,87400.0,0.1730937]
[1767038314824,0.01162486,87414.0,87400.0,0.1730937]
[1767038315716,0.01162486,87414.0,87400.0,0.1360937]
[1767038316525,0.00017156,87414.0,87400.0,0.1360937]
[1767038319726,0.01162486,87414.0,87400.0,0.1360937]
[1767038320426,0.0114536,87412.0,87400.0,0.1730937]
[1767038320622,0.00017156,87414.0,87400.0,0.1730937]
[1767038321225,0.1730937,87410.0,87398.0,9e-08]
[1767038321522,0.1730937,87410.0,87377.0,0.00010284]
[1767038321523,0.0114559,87395.0,87385.0,0.09736]
[1767038321724,0.1730937,87395.0,87380.0,0.05732]
[1767038321929,0.00017156,87396.0,87380.0,0.05732]
[1767038322113,0.1730937,87390.0,87380.0,0.05732]
[1767038322318,0.00017156,87396.0,87381.0,0.0114576]
[1767038322529,0.00017156,87396.0,87380.0,0.05732]
[1767038323833,0.01162726,87396.0,87380.0,0.05732]
[1767038324224,0.00017156,87396.0,87380.0,0.05732]
[1767038325723,0.00017156,87396.0,87380.0,0.2304137]
[1767038326124,0.00017156,87396.0,87383.0,0.0114573]
[1767038326325,0.05732,87403.0,87386.0,0.1730937]
[1767038326525,0.05732,87403.0,87380.0,0.05732]
[1767038326526,0.05732,87403.0,87390.0,0.1730937]
[1767038326720,0.1730937,87400.0,87380.0,0.05732]
[1767038327025,0.06306664,87414.0,87390.0,0.3461874]
[1767038327232,0.00017156,87411.0,87393.0,0.00017156]
[1767038327432,0.2704537,87410.0,87393.0,0.00017156]
[1767038327832,0.2704537,87410.0,87390.0,0.1730937]
[1767038328826,0.09736,87410.0,87390.0,0.1730937]
[1767038329642,0.09736,87410.0,87391.0,0.0114563]
[1767038329940,0.09736,87410.0,87390.0,0.1730937]
[1767038332748,0.2704537,87410.0,87390.0,0.1730937]
[1767038334750,0.2704537,87410.0,87390.0,0.1460937]
[1767038334933,0.09736,87410.0,87390.0,0.1730937]
[1767038335139,0.09736,87410.0,87387.0,0.05732]
[1767038335335,0.2704537,87410.0,87390.0,0.1730937]
[1767038335530,0.2704537,87410.0,87387.0,0.05732]
[1767038336138,0.2704537,87410.0,87390.0,0.1730937]
[1767038336539,0.2704537,87410.0,87388.0,0.0114566]
[1767038336728,0.2704537,87410.0,87390.0,0.1730937]
[1767038338437,0.00017156,87411.0,87390.0,0.1730937]
[1767038338635,0.3277737,87410.0,87390.0,0.1730937]
[1767038339737,0.15468,87410.0,87390.0,0.1730937]
[1767038339937,0.3277737,87410.0,87390.0,0.1730937]
[1767038341536,0.15468,87410.0,87390.0,0.1730937]
[1767038341743,0.15468,87410.0,87390.0,0.18455]
[1767038342044,0.3277737,87410.0,87390.0,0.15655]
[1767038342245,0.3277737,87410.0,87387.0,0.05732]
[1767038342437,0.3392276,87410.0,87387.0,0.05732]
[1767038342649,0.3277737,87410.0,87387.0,0.05732]
[1767038343133,0.3277737,87410.0,87390.0,0.1730937]
[1767038346039,0.3277737,87410.0,87390.0,0.1845501]
[1767038347961,0.15468,87410.0,87392.0,0.0114561]
[1767038348445,0.09736,87410.0,87400.0,0.1730937]
[1767038348743,0.05732,87409.0,87400.0,0.1730937]
[1767038348943,0.05732,87409.0,87394.0,0.02332]
[1767038351737,0.05732,87409.0,87395.0,0.01791217]
[1767038351940,0.05732,87409.0,87394.0,0.02332]
[1767038352140,0.05732,87409.0,87395.0,0.01788565]
[1767038352339,0.05732,87409.0,87394.0,0.02332]
[1767038352542,0.05732,87409.0,87395.0,0.01788793]
[1767038352741,0.05732,87409.0,87394.0,0.02332]
[1767038352946,0.05732,87409.0,87395.0,0.01788793]
[1767038353137,0.05732,87409.0,87394.0,0.02332]
[1767038353338,0.05732,87409.0,87395.0,0.01788816]
[1767038353539,0.05732,87409.0,87396.0,0.01788816]
[1767038353834,0.05732,87409.0,87394.0,0.02332]
[1767038356347,0.05732,87409.0,87394.0,0.00732]
[1767038359354,0.05732,87409.0,87394.0,0.0187758]
[1767038360853,0.05732,87409.0,87395.0,0.01791217]
[1767038361059,0.05732,87409.0,87396.0,0.01791217]
[1767038361355,0.05732,87409.0,87397.0,0.01791217]
[1767038361657,0.05732,87409.0,87394.0,0.0187758]
[1767038361856,0.05732,87409.0,87395.0,0.01791215]
[1767038362157,0.05732,87409.0,87396.0,0.01791215]
[1767038362360,0.05732,87409.0,87397.0,0.01791215]
[1767038362553,0.05732,87409.0,87394.0,0.00732]
[1767038362753,0.05732,87409.0,87395.0,0.01791215]
[1767038363052,0.05732,87409.0,87396.0,0.01791215]
[1767038363250,0.05732,87409.0,87391.0,0.05732]
[1767038363456,0.05732,87409.0,87392.0,0.01791215]
[1767038363760,0.05732,87409.0,87393.0,0.01791215]
[1767038364060,0.05732,87409.0,87394.0,0.01791215]
[1767038364250,0.05732,87409.0,87395.0,0.01791215]
[1767038364449,0.05732,87409.0,87396.0,0.01791215]
[1767038364650,0.05732,87409.0,87397.0,0.01791215]
[1767038364861,0.05732,87409.0,87391.0,0.0687762]
[1767038365065,0.05732,87409.0,87392.0,0.01791214]
[1767038365359,0.05732,87409.0,87393.0,0.01791214]
[1767038365561,0.05732,87409.0,87394.0,0.01791214]
[1767038365751,0.05732,87409.0,87395.0,0.01791214]
[1767038365955,0.05732,87409.0,87396.0,0.01791214]
[1767038366260,0.05732,87409.0,87391.0,0.0687762]
[1767038366261,0.05732,87409.0,87397.0,0.01791214]
[1767038366557,0.05732,87409.0,87393.0,0.011456]
[1767038366754,0.05732,87409.0,87394.0,0.01791211]
[1767038366949,0.05732,87409.0,87395.0,0.01791211]
[1767038367151,0.05732,87409.0,87396.0,0.01791211]
[1767038367352,0.05732,87409.0,87397.0,0.01791211]
[1767038367658,0.05732,87409.0,87393.0,0.011456]
[1767038367963,0.05732,87409.0,87394.0,0.01791215]
[1767038368160,0.05732,87409.0,87393.0,0.011456]
[1767038368161,0.05732,87409.0,87395.0,0.01791215]
[1767038368365,0.05732,87409.0,87396.0,0.01791215]
[1767038368559,0.05732,87409.0,87397.0,0.01791215]
[1767038368760,0.05732,87409.0,87393.0,0.011456]
[1767038369061,0.05732,87409.0,87399.0,0.1730937]
[1767038369251,0.05732,87408.0,87399.0,0.01833308]
[1767038370261,0.05732,87408.0,87399.0,0.00233308]
[1767038370448,0.05732,87408.0,87392.0,0.0114561]
[1767038372164,0.05732,87408.0,87394.0,0.0114558]
[1767038375371,0.05732,87408.0,87393.0,0.0114559]
[1767038375572,0.05732,87408.0,87392.0,0.05732]
[1767038375869,0.05732,87408.0,87394.0,0.0114558]
[1767038377371,0.05732,87408.0,87392.0,0.0487758]
[1767038378178,0.05732,87408.0,87394.0,0.0114558]
[1767038378372,0.05732,87408.0,87392.0,0.0487758]
[1767038378673,0.05732,87408.0,87393.0,0.01791209]
[1767038378968,0.05732,87408.0,87394.0,0.01791209]
[1767038379170,0.05732,87408.0,87395.0,0.01791209]
[1767038379373,0.05732,87408.0,87396.0,0.01791209]
[1767038379671,0.05732,87408.0,87388.0,0.0114566]
[1767038379873,0.0114546,87404.0,87381.0,0.0114575]
[1767038380177,0.00017156,87411.0,87379.0,0.05732]
[1767038380385,0.00017156,87411.0,87400.0,0.0114551]
[1767038380682,0.05732,87410.0,87403.0,0.0114546]
[1767038381275,0.05732,87410.0,87405.0,0.0114544]
[1767038381476,0.00228761,87428.0,87398.0,0.05732]
[1767038381677,0.09736,87422.0,87412.0,0.0114534]
[1767038381875,0.09736,87422.0,87414.0,0.0114532]
[1767038382283,0.00228761,87428.0,87417.0,0.0114528]
[1767038382481,0.05732,87427.0,87414.0,0.01162476]
[1767038382676,0.05732,87427.0,87414.0,0.00017156]
[1767038385284,0.05732,87427.0,87399.0,0.16276006]
[1767038385486,0.05732,87427.0,87411.0,0.0114536]
[1767038387091,0.05732,87427.0,87413.0,0.0114533]
[1767038387285,0.05732,87427.0,87415.0,0.011453]
[1767038387790,0.09964761,87428.0,87417.0,0.0114528]
[1767038387791,0.05732,87426.0,87417.0,0.0114528]
[1767038387990,0.05732,87426.0,87414.0,0.0114532]
[1767038388191,0.05732,87426.0,87416.0,0.011453]
[1767038389495,0.05732,87426.0,87404.0,0.0114545]
[1767038389988,0.05732,87426.0,87415.0,0.0114531]
[1767038391287,0.05732,87426.0,87417.0,0.0114528]
[1767038392390,0.05732,87426.0,87409.0,0.0848128]
[1767038392986,0.05732,87426.0,87415.0,0.011453]
[1767038393487,0.05732,87426.0,87417.0,0.0114528]
[1767038396896,0.05732,87426.0,87419.0,0.0114526]
[1767038398100,0.05732,87426.0,87416.0,0.011453]
[1767038398792,0.05732,87426.0,87418.0,0.0114527]
[1767038399401,0.05732,87426.0,87409.0,0.0848128]
[1767038399596,0.05732,87426.0,87409.0,0.0578128]
[1767038400400,0.05732,87426.0,87414.0,0.0114532]
[1767038400601,0.05732,87426.0,87416.0,0.011453]
[1767038400896,0.05732,87426.0,87400.0,0.28192434]
[1767038401200,0.0114519,87425.0,87408.0,0.011454]
[1767038401408,0.0114523,87422.0,87400.0,0.09736]
[1767038401791,0.05732,87426.0,87400.0,0.09736]
[1767038401995,0.00228761,87428.0,87406.0,0.0114543]
[1767038402191,0.05732,87427.0,87400.0,0.09736]
[1767038402507,0.0687716,87427.0,87400.0,0.09736]
[1767038402896,0.0687716,87427.0,87409.0,0.0114538]
[1767038403102,0.05732,87427.0,87413.0,0.0114534]
[1767038404705,0.05732,87427.0,87410.0,0.0114537]
[1767038404999,0.05732,87427.0,87409.0,0.0114539]
[1767038405206,0.05732,87427.0,87411.0,0.0114536]
[1767038405906,0.05732,87427.0,87407.0,0.0114541]
[1767038406106,0.05732,87427.0,87409.0,0.0114539]
[1767038406808,0.05732,87427.0,87400.0,0.0938139]
[1767038407194,0.05732,87427.0,87402.0,0.0114547]
[1767038407907,0.0114517,87426.0,87402.0,0.0114547]
[1767038408108,0.0114519,87425.0,87401.0,0.0114549]
[1767038408407,0.05732,87427.0,87401.0,0.0114549]
[1767038408709,0.05732,87427.0,87401.0,0.09736]
[1767038408908,0.0114531,87416.0,87401.0,0.09736]
[1767038409411,0.05732,87420.0,87401.0,0.09736]
[1767038410606,0.0687726,87420.0,87402.0,0.0114547]
[1767038410808,0.0687726,87420.0,87401.0,0.09736]
[1767038411605,0.0687726,87420.0,87401.0,0.1088149]
[1767038412125,0.0687726,87420.0,87401.0,0.09736]
[1767038412296,0.0114528,87418.0,87401.0,0.09736]
[1767038414304,0.0114534,87414.0,87401.0,0.09736]
[1767038414500,0.0114534,87414.0,87381.0,0.0114576]
[1767038414501,0.0114536,87412.0,87391.0,0.0114562]
[1767038414715,0.00017156,87410.0,87394.0,0.0114558]
[1767038415715,0.00017156,87410.0,87391.0,0.15468]
[1767038416014,0.00017156,87410.0,87397.0,0.0114554]
[1767038420819,0.0114525,87420.0,87391.0,0.15468]
[1767038421811,0.00017156,87414.0,87397.0,0.00017156]
[1767038422511,0.00017156,87414.0,87402.0,0.0114548]
[1767038423821,0.00017156,87414.0,87400.0,0.0114551]
[1767038425115,0.01162486,87414.0,87397.0,0.01162696]
[1767038425523,0.00017156,87414.0,87397.0,0.01162696]
[1767038426430,0.00017156,87414.0,87397.0,0.00017156]
[1767038426625,0.0114535,87413.0,87397.0,0.00017156]
[1767038427019,0.00017156,87414.0,87397.0,0.00017156]
[1767038427329,0.00017156,87414.0,87382.0,0.09736]
[1767038427527,0.06143919,87412.0,87383.0,0.0114573]
[1767038427728,0.05732,87411.0,87383.0,0.0114573]
[1767038427929,0.09736,87410.0,87383.0,0.0114573]
[1767038429243,0.09736,87410.0,87369.0,0.0114591]
[1767038429244,0.0114563,87391.0,87369.0,0.0114591]
[1767038429444,0.00017166,87389.0,87368.0,0.00228918]
[1767038429948,0.00017166,87389.0,87371.0,0.0114589]
[1767038430344,0.0001069,87388.0,87371.0,0.0114589]
[1767038432745,0.0001069,87388.0,87370.0,0.09736]
[1767038433744,0.0001069,87388.0,87370.0,0.108819]
[1767038434546,0.0001069,87388.0,87370.0,0.09736]
[1767038435052,0.0001069,87388.0,87371.0,0.0114588]
[1767038435252,0.0001069,87388.0,87373.0,0.0114586]
[1767038435547,0.05732,87396.0,87372.0,0.05732]
[1767038435743,0.09736,87398.0,87382.0,0.0114575]
[1767038435943,0.0114549,87402.0,87382.0,0.0114575]
[1767038436144,0.1088149,87402.0,87382.0,0.0114575]
[1767038436547,0.00017166,87401.0,87383.0,0.00017166]
[1767038436748,0.0114558,87395.0,87372.0,0.05732]
[1767038436958,0.0114558,87395.0,87380.0,0.17314576]
[1767038437152,0.0114554,87398.0,87380.0,0.17314576]
[1767038437455,0.0114557,87396.0,87380.0,0.17314576]
[1767038437652,0.0114557,87396.0,87375.0,0.0114584]
[1767038438153,0.0114553,87399.0,87377.0,0.011458]
[1767038438743,0.0114553,87399.0,87380.0,0.17314576]
[1767038438958,0.0114552,87399.0,87380.0,0.17314576]
[1767038439157,0.0114552,87399.0,87380.0,0.15014576]
[1767038439854,0.0114552,87399.0,87379.0,0.0114577]
[1767038440059,0.0114552,87399.0,87380.0,0.17314576]
[1767038441154,0.00017166,87401.0,87381.0,0.0114576]
[1767038441361,0.00017166,87401.0,87390.0,0.17314576]
[1767038441859,0.0114551,87400.0,87383.0,0.05732]
[1767038442456,0.00017166,87401.0,87383.0,0.05732]
[1767038442660,0.17314576,87400.0,87383.0,0.05732]
[1767038443550,0.0114553,87399.0,87383.0,0.05732]
[1767038443950,0.00017166,87401.0,87383.0,0.05732]
[1767038445665,0.17314576,87400.0,87383.0,0.05732]
[1767038445852,0.0114553,87399.0,87383.0,0.05732]
[1767038446863,0.17314576,87400.0,87382.0,0.09736]
[1767038446864,0.0114555,87397.0,87382.0,0.09736]
[1767038447065,0.18460096,87400.0,87382.0,0.09736]
[1767038447258,0.0114555,87398.0,87382.0,0.09736]
[1767038447954,0.0114557,87396.0,87382.0,0.09736]
[1767038448654,0.17314576,87392.0,87382.0,0.09736]
[1767038449461,0.17314576,87392.0,87378.0,0.05736]
[1767038449660,0.0114563,87391.0,87378.0,0.05736]
[1767038450169,0.068816,87394.0,87378.0,0.05736]
[1767038451866,0.0114563,87391.0,87378.0,0.05736]
[1767038452269,0.068816,87394.0,87378.0,0.05736]
[1767038452665,0.17314576,87390.0,87373.0,0.09736]
[1767038452862,0.05736,87394.0,87368.0,0.01374838]
[1767038452863,0.17314576,87383.0,87368.0,0.00228918]
[1767038453066,0.17314576,87380.0,87368.0,0.00228918]
[1767038453661,0.00017166,87383.0,87368.0,0.00228918]
[1767038457762,0.00017166,87383.0,87370.0,0.17314576]
[1767038463378,0.00017166,87383.0,87369.0,0.0114591]
[1767038463678,0.00017166,87383.0,87370.0,0.17314576]
[1767038465176,0.05736,87386.0,87370.0,0.17314576]
[1767038465480,0.05736,87385.0,87370.0,0.17314576]
[1767038465776,0.05736,87386.0,87370.0,0.18460476]
[1767038467171,0.05736,87386.0,87370.0,0.17314576]
[1767038467569,0.05736,87386.0,87369.0,0.01163076]
[1767038467775,0.05736,87386.0,87370.0,0.17314576]
[1767038469080,0.05736,87386.0,87371.0,0.0114589]
[1767038470483,0.05736,87386.0,87373.0,0.0114586]
[1767038470872,0.05736,87386.0,87370.0,0.18460466]
[1767038471075,0.05736,87386.0,87372.0,0.0114587]
[1767038475284,0.05736,87386.0,87371.0,0.0688189]
[1767038476786,0.05736,87386.0,87373.0,0.0114586]
[1767038477282,0.05736,87386.0,87371.0,0.05736]
[1767038477889,0.05736,87386.0,87372.0,0.0114587]
[1767038478892,0.05736,87386.0,87371.0,0.0688188]
[1767038481480,0.05736,87386.0,87371.0,0.05736]
[1767038481788,0.05736,87386.0,87369.0,0.05753166]
[1767038481789,0.0114578,87380.0,87369.0,0.05753166]
[1767038482493,0.18460356,87380.0,87369.0,0.05753166]
[1767038482885,0.18460356,87380.0,87364.0,0.0974]
[1767038483091,0.17314576,87374.0,87365.0,0.05736]
[1767038483287,0.17314576,87374.0,87364.0,0.0974]
[1767038483288,0.17314576,87374.0,87352.0,0.05]
[1767038483493,0.0114602,87361.0,87350.0,4.3484346]
[1767038483688,0.23050576,87360.0,87350.0,4.23575804]
[1767038484084,0.24196616,87360.0,87350.0,4.15977804]
[1767038484389,0.0114607,87358.0,87350.0,2.16959031]
[1767038484591,0.0114607,87358.0,87350.0,2.01959031]
[1767038484789,0.23050576,87360.0,87350.0,2.01959031]
[1767038484986,0.23050576,87360.0,87350.0,1.91966344]
[1767038485889,0.05736,87360.0,87350.0,1.91966344]
[1767038486093,0.00017166,87363.0,87350.0,1.9928092]
[1767038486398,0.05736,87362.0,87350.0,1.9928092]
[1767038486582,0.06152743,87387.0,87354.0,0.0114611]
[1767038486787,0.15476,87386.0,87360.0,0.17314576]
[1767038487088,0.17314576,87380.0,87360.0,0.17314576]
[1767038487486,0.15493166,87379.0,87361.0,0.00017166]
[1767038487685,0.00017166,87379.0,87369.0,0.17314576]
[1767038487885,0.15476,87378.0,87369.0,0.17314576]
[1767038488085,0.15476,87378.0,87361.0,0.00017166]
[1767038488591,0.01162966,87379.0,87361.0,0.00017166]
[1767038488592,0.05736,87377.0,87361.0,0.00017166]
[1767038489097,0.05736,87377.0,87360.0,0.18460596]
[1767038489687,0.05736,87377.0,87362.0,0.01146]
[1767038490292,0.05736,87377.0,87367.0,0.17314576]
[1767038492783,0.05736,87377.0,87364.0,0.0688197]
[1767038493384,0.05736,87377.0,87367.0,0.17314576]
[1767038493591,0.06143919,87403.0,87367.0,0.17314576]
[1767038493790,0.0114561,87393.0,87370.0,0.17314576]
[1767038494201,0.0114564,87391.0,87370.0,0.17314576]
[1767038494399,0.0114569,87387.0,87370.0,0.17314576]
[1767038494696,0.05736,87386.0,87370.0,0.17331742]
[1767038496502,0.05736,87386.0,87370.0,0.00017166]
[1767038501907,0.05736,87386.0,87371.0,0.0114589]
[1767038502106,0.05736,87386.0,87370.0,0.00017166]
[1767038504101,0.09757166,87387.0,87370.0,0.00017166]
[1767038504300,0.05736,87392.0,87381.0,0.0114576]
[1767038504501,0.0974,87395.0,87387.0,0.0114567]
[1767038504702,0.05736,87397.0,87384.0,0.0114571]
[1767038504904,0.05736,87397.0,87386.0,0.0114569]
[1767038505298,0.05736,87397.0,87385.0,0.011457]
[1767038505607,0.05731,87397.0,87385.0,0.011457]
[1767038506905,0.05731,87397.0,87380.0,0.0114576]
[1767038507102,0.05731,87397.0,87382.0,0.0114574]
[1767038507405,0.05731,87397.0,87378.0,0.05436]
[1767038508221,0.05731,87397.0,87386.0,0.0114569]
[1767038508420,0.05731,87397.0,87386.0,0.0114069]
[1767038508924,0.0114538,87410.0,87389.0,0.0114565]
[1767038509123,0.15476,87409.0,87389.0,0.0114565]
[1767038510220,0.00017166,87408.0,87390.0,0.00017166]
[1767038510622,0.05753166,87408.0,87396.0,0.0114555]
[1767038511716,0.0974,87411.0,87398.0,0.0114553]
[1767038512024,0.011453,87417.0,87398.0,0.0114553]
[1767038512724,0.00017166,87416.0,87395.0,0.0114557]
[1767038513425,0.00017166,87416.0,87397.0,0.0114554]